bitfinex/quotes_BTCUSD_20250703
["timestamp","ask_amount","ask_price","bid_price","bid_amount"]
[1751503477889,0.00693825,109230.0,109220.0,0.39181729]
[1751503478169,0.32922159,109230.0,109220.0,0.39181729]
[1751503478573,0.00693825,109230.0,109220.0,1.12355814]
[1751503478788,0.00693825,109230.0,109220.0,1.12349742]
[1751503479012,0.00693825,109230.0,109220.0,1.05063476]
[1751503479220,0.00693825,109230.0,109220.0,1.14181603]
[1751503479396,0.00264257,109230.0,109220.0,1.14181603]
[1751503480174,0.00915114,109270.0,109250.0,0.21052513]
[1751503480175,0.04692,109270.0,109250.0,0.21052513]
[1751503480379,0.32228334,109260.0,109250.0,0.35524148]
[1751503480579,0.32228334,109260.0,109250.0,0.37344526]
[1751503481021,0.32228334,109260.0,109250.0,0.36429245]
[1751503481409,0.32328334,109260.0,109250.0,0.36429245]
[1751503481616,0.32328334,109260.0,109250.0,0.15376682]
[1751503481818,0.6547184,109260.0,109250.0,0.15376682]
[1751503482036,0.64556668,109260.0,109250.0,0.19015271]
[1751503482230,0.64556668,109260.0,109250.0,0.3823723]
[1751503482406,0.32328334,109260.0,109250.0,0.35513947]
[1751503482624,0.32328334,109260.0,109250.0,0.36429245]
[1751503482786,0.32328334,109260.0,109250.0,0.37344518]
[1751503483065,0.32328334,109260.0,109250.0,0.31883384]
[1751503483289,0.32328334,109260.0,109250.0,0.37336842]
[1751503483501,0.32428334,109260.0,109250.0,0.36421569]
[1751503483747,0.32428334,109260.0,109250.0,0.38252123]
[1751503484165,0.002,109260.0,109250.0,0.38252123]
[1751503484380,0.32428334,109260.0,109250.0,0.37336858]
[1751503484843,0.32428334,109260.0,109250.0,0.38265205]
[1751503485273,0.32428334,109260.0,109250.0,0.39180478]
[1751503486161,0.32428334,109260.0,109250.0,0.38265205]
[1751503486376,0.32428334,109260.0,109250.0,0.34603989]
[1751503486578,0.32428334,109260.0,109250.0,0.20844908]
[1751503486790,0.64656668,109260.0,109250.0,0.19929593]
[1751503487447,0.89630294,109260.0,109250.0,0.16271864]
[1751503487662,0.88715063,109260.0,109250.0,0.16271864]
[1751503487876,0.35688334,109260.0,109250.0,0.16271864]
[1751503488083,0.6883184,109260.0,109250.0,0.16271864]
[1751503488330,0.69747029,109260.0,109250.0,0.16271864]
[1751503488770,0.69747037,109260.0,109250.0,0.16271864]
[1751503488984,0.70662251,109260.0,109250.0,0.12639624]
[1751503489201,0.70662243,109260.0,109250.0,0.12639624]
[1751503489406,0.69747037,109260.0,109250.0,0.12639624]
[1751503489823,0.70662243,109260.0,109250.0,0.12639624]
[1751503490037,0.69747037,109260.0,109250.0,0.12639624]
[1751503490669,0.69747037,109260.0,109250.0,0.14475624]
[1751503490879,0.69747037,109260.0,109250.0,0.12639624]
[1751503491077,0.04375172,109260.0,109250.0,0.12639624]
[1751503491314,0.69918782,109260.0,109250.0,0.12639624]
[1751503491524,0.69747029,109260.0,109250.0,0.12639624]
[1751503494198,0.6883184,109260.0,109250.0,0.12639624]
[1751503494437,0.69747029,109260.0,109250.0,0.12639624]
[1751503494673,0.6883184,109260.0,109250.0,0.12639624]
[1751503494883,0.69747029,109260.0,109250.0,0.12639624]
[1751503495305,0.70662235,109260.0,109250.0,0.12639624]
[1751503495519,0.69747029,109260.0,109250.0,0.12639624]
[1751503496163,0.05290361,109260.0,109250.0,0.12639624]
[1751503496399,0.69918782,109260.0,109250.0,0.12639624]
[1751503496561,0.69747029,109260.0,109250.0,0.12639624]
[1751503496983,0.04375172,109260.0,109250.0,0.12639624]
[1751503497156,0.04546925,109260.0,109250.0,0.12639624]
[1751503497369,0.69003593,109260.0,109250.0,0.12639624]
[1751503497571,0.69747029,109260.0,109250.0,0.12639624]
[1751503497782,0.67916668,109260.0,109250.0,0.12639624]
[1751503498293,0.24028,109260.0,109250.0,0.12639624]
[1751503498517,0.0022,109260.0,109250.0,0.44623331]
[1751503498724,0.0022,109260.0,109250.0,0.50432713]
[1751503498931,0.32448334,109260.0,109250.0,0.50432713]
[1751503499144,0.32448334,109260.0,109250.0,0.46160933]
[1751503499519,0.19348,109260.0,109250.0,0.48253651]
[1751503500103,0.19348,109260.0,109250.0,0.48253638]
[1751503500325,0.0022,109260.0,109250.0,0.48253638]
[1751503500745,0.0022,109260.0,109250.0,0.82253638]
[1751503500962,0.0022,109260.0,109250.0,0.7680018]
[1751503501179,0.0022,109260.0,109250.0,0.84081692]
[1751503502506,0.64676668,109260.0,109250.0,0.09914628]
[1751503502694,0.64676668,109260.0,109250.0,0.16280807]
[1751503502912,0.83828668,109260.0,109250.0,0.1899992]
[1751503503918,0.51600334,109260.0,109250.0,0.1899992]
[1751503505152,0.83828668,109260.0,109250.0,0.1899992]
[1751503505362,0.85428668,109260.0,109250.0,0.15365476]
[1751503505739,0.83828668,109260.0,109250.0,0.15365476]
[1751503506127,0.83828668,109260.0,109250.0,0.16280807]
[1751503506330,0.85428668,109260.0,109250.0,0.15365476]
[1751503506711,0.87008668,109260.0,109250.0,0.15365476]
[1751503507425,0.70602259,109260.0,109250.0,0.15365476]
[1751503507649,0.93639037,109260.0,109250.0,0.04278906]
[1751503507833,0.93639037,109260.0,109250.0,0.07009719]
[1751503507834,0.94554251,109260.0,109250.0,0.07009719]
[1751503508034,0.93639037,109260.0,109250.0,0.07011087]
[1751503508236,0.94554251,109260.0,109250.0,0.07011087]
[1751503508440,0.94554243,109260.0,109250.0,0.07011087]
[1751503508853,0.95469465,109260.0,109250.0,0.07011087]
[1751503508978,0.94554243,109260.0,109250.0,0.07011087]
[1751503509179,0.95469465,109260.0,109250.0,0.07011087]
[1751503509404,0.95469465,109260.0,109250.0,0.04280274]
[1751503510680,0.93639037,109260.0,109250.0,0.04280274]
[1751503510885,0.94554259,109260.0,109250.0,0.04280611]
[1751503511310,0.94554259,109260.0,109250.0,0.07012601]
[1751503511555,1.12859219,109260.0,109250.0,0.07012601]
[1751503511767,1.12859278,109260.0,109250.0,0.07012601]
[1751503511973,1.11944081,109260.0,109250.0,0.07012601]
[1751503512388,1.14695481,109260.0,109250.0,0.03372315]
[1751503513854,1.14695481,109260.0,109250.0,0.0337229]
[1751503514056,0.96390521,109260.0,109250.0,0.0337229]
[1751503514233,1.15610729,109260.0,109250.0,0.0337229]
[1751503514673,1.15610729,109260.0,109250.0,0.006403]
[1751503515018,1.15610729,109260.0,109250.0,0.0337212]
[1751503515499,0.97305769,109260.0,109250.0,0.0337212]
[1751503516181,0.96390521,109260.0,109250.0,0.0337212]
[1751503517074,1.14695481,109260.0,109250.0,0.0337212]
[1751503517296,0.96390521,109260.0,109250.0,0.0337212]
[1751503517504,0.95475249,109260.0,109250.0,0.0337212]
[1751503517734,0.94554269,109260.0,109250.0,0.0337212]
[1751503517975,0.954695,109260.0,109250.0,0.0337212]
[1751503519615,1.13774527,109260.0,109250.0,0.0337212]
[1751503520037,1.12859321,109260.0,109250.0,0.0337212]
[1751503520832,1.15610721,109260.0,109250.0,0.0337212]
[1751503521254,0.91658721,109260.0,109250.0,0.0337212]
[1751503521435,1.15530721,109260.0,109250.0,0.0337212]
[1751503523752,0.97225761,109260.0,109250.0,0.0337212]
[1751503523954,0.97209752,109260.0,109250.0,0.0337212]
[1751503524989,0.97209752,109260.0,109250.0,0.03372565]
[1751503526367,1.15514712,109260.0,109250.0,0.03372565]
[1751503527599,1.15502712,109260.0,109250.0,0.03372565]
[1751503528146,1.15502712,109260.0,109250.0,0.03372757]
[1751503528965,1.14587498,109260.0,109250.0,0.03372757]
[1751503533276,1.14587498,109260.0,109250.0,0.07013043]
[1751503533682,0.95531498,109260.0,109250.0,0.07013043]
[1751503533877,1.14555498,109260.0,109250.0,0.07013043]
[1751503537674,1.13640267,109260.0,109250.0,0.07013043]
[1751503539360,1.13640267,109260.0,109250.0,0.04280778]
[1751503540050,0.49183599,109260.0,109250.0,0.04280778]
[1751503540670,1.13640267,109260.0,109250.0,0.04280778]
[1751503541649,1.13640267,109260.0,109250.0,0.04282282]
[1751503545277,1.8822937,109260.0,109250.0,0.02739411]
[1751503545498,2.03219497,109260.0,109250.0,0.02739411]
[1751503545867,0.22451951,109250.0,109240.0,0.06379697]
[1751503546220,1.39900619,109250.0,109240.0,0.02739411]
[1751503546660,1.42652419,109250.0,109240.0,0.02739411]
[1751503547285,1.42852419,109250.0,109240.0,0.02739411]
[1751503547490,1.42652419,109250.0,109240.0,0.02739411]
[1751503547866,1.43052419,109250.0,109240.0,0.02739411]
[1751503548075,0.21669074,109240.0,109230.0,0.07328299]
[1751503548234,1.07599132,109240.0,109230.0,0.03688013]
[1751503548445,1.08514547,109240.0,109230.0,0.03688013]
[1751503549056,1.07599182,109240.0,109230.0,0.03688013]
[1751503549462,1.06683792,109240.0,109230.0,0.03688013]
[1751503549699,1.06683792,109240.0,109230.0,0.03788013]
[1751503550246,1.05768394,109240.0,109230.0,0.03788013]
[1751503550872,1.04852979,109240.0,109230.0,0.02879411]
[1751503551283,1.04852979,109240.0,109230.0,0.0014]
[1751503551706,1.38852979,109240.0,109230.0,0.0014]
[1751503551914,1.39052979,109240.0,109230.0,0.0014]
[1751503552347,1.41805079,109240.0,109230.0,0.0014]
[1751503556301,1.65073095,109240.0,109230.0,0.0014]
[1751503557345,2.28745641,109240.0,109230.0,0.0014]
[1751503558544,2.28545641,109240.0,109230.0,0.0014]
[1751503558872,2.28745641,109240.0,109230.0,0.0014]
[1751503559104,2.28745641,109240.0,109230.0,0.0004]
[1751503559547,2.28545641,109240.0,109230.0,0.0004]
[1751503559729,1.96617307,109240.0,109230.0,0.0004]
[1751503559919,1.87341299,109240.0,109230.0,0.0004]
[1751503560122,1.55917087,109240.0,109230.0,0.0004]
[1751503560718,1.56317087,109240.0,109230.0,0.0004]
[1751503563067,1.89999506,109240.0,109230.0,0.0004]
[1751503563291,2.11985023,109240.0,109230.0,1e-08]
[1751503563506,7.14346357,109240.0,109230.0,1e-08]
[1751503563709,7.29336484,109240.0,109230.0,1e-08]
[1751503563917,7.3197515,109240.0,109230.0,1e-08]
[1751503564587,7.3157515,109240.0,109230.0,1e-08]
[1751503565341,7.3217515,109240.0,109230.0,1e-08]
[1751503565554,7.3757515,109240.0,109230.0,1e-08]
[1751503566180,0.88696983,109220.0,109210.0,0.0004]
[1751503566381,0.5725646,109200.0,109190.0,0.08152587]
[1751503566536,0.8095246,109200.0,109190.0,0.08152587]
[1751503566736,1.22456802,109200.0,109190.0,0.08152587]
[1751503566976,2.04656797,109200.0,109190.0,0.07298937]
[1751503567193,2.06110882,109200.0,109190.0,0.07298937]
[1751503567396,2.06110882,109200.0,109180.0,0.0004]
[1751503567397,0.22412513,109190.0,109180.0,0.0004]
[1751503567570,0.22412513,109190.0,109180.0,0.00087036]
[1751503567571,1.19845189,109190.0,109180.0,0.00087036]
[1751503567977,0.96145189,109190.0,109180.0,0.00087036]
[1751503568181,1.19845189,109190.0,109180.0,0.00087036]
[1751503568402,1.19841189,109190.0,109180.0,0.00087036]
[1751503568988,1.29117197,109190.0,109180.0,0.00087036]
[1751503569813,1.29217197,109190.0,109180.0,0.00587036]
[1751503570780,1.30671282,109190.0,109180.0,0.00587036]
[1751503571605,1.30667282,109190.0,109180.0,0.00587036]
[1751503571805,1.30767282,109190.0,109180.0,0.00587036]
[1751503572808,1.07075282,109190.0,109180.0,0.00587036]
[1751503573395,1.33504982,109190.0,109180.0,0.00587036]
[1751503573567,0.66870555,109190.0,109180.0,0.00587036]
[1751503573765,0.87366555,109190.0,109180.0,0.00587036]
[1751503574425,1.19594889,109190.0,109180.0,0.00587036]
[1751503575167,0.87366555,109190.0,109180.0,0.00587036]
[1751503575578,1.19594889,109190.0,109180.0,0.00587036]
[1751503580633,1.22714889,109190.0,109180.0,0.00587036]
[1751503580843,1.33444982,109190.0,109180.0,0.00587036]
[1751503581890,1.33444982,109190.0,109180.0,1e-08]
[1751503582315,1.36191209,109190.0,109180.0,1e-08]
[1751503582845,1.70191209,109190.0,109180.0,1e-08]
[1751503583538,1.46515209,109190.0,109180.0,1e-08]
[1751503583754,1.70187209,109190.0,109180.0,1e-08]
[1751503584818,1.70187209,109190.0,109180.0,0.00040001]
[1751503585762,1.70187209,109190.0,109180.0,1e-08]
[1751503586449,2.19917209,109190.0,109180.0,1e-08]
[1751503586657,2.07882974,109190.0,109180.0,1e-08]
[1751503589578,1.84222974,109190.0,109180.0,1e-08]
[1751503589852,1.4887464,109190.0,109180.0,1e-08]
[1751503590080,1.59100555,109190.0,109180.0,0.03160001]
[1751503590298,1.93100555,109190.0,109180.0,0.04013811]
[1751503590505,1.59100555,109190.0,109180.0,0.05721525]
[1751503590935,1.93100555,109190.0,109180.0,0.05721525]
[1751503592393,1.43370555,109190.0,109180.0,0.0636262]
[1751503593493,1.43370555,109190.0,109180.0,0.06363141]
[1751503593740,1.43362555,109190.0,109180.0,0.06363141]
[1751503593955,1.34058547,109190.0,109180.0,0.06363141]
[1751503594575,1.15122547,109190.0,109180.0,0.06363141]
[1751503594784,1.34058547,109190.0,109180.0,0.06363141]
[1751503598325,1.34058547,109190.0,109180.0,0.06367297]
[1751503600852,1.10426547,109190.0,109180.0,0.06367297]
[1751503600971,1.34038547,109190.0,109180.0,0.06367297]
[1751503601172,1.34058547,109190.0,109180.0,0.06367297]
[1751503601375,0.70117826,109190.0,109180.0,0.06367297]
[1751503601578,1.14819711,109190.0,109180.0,0.05513487]
[1751503601995,1.14819702,109190.0,109180.0,0.05513487]
[1751503602232,0.22232,109190.0,109180.0,0.05513487]
[1751503602445,0.45836,109190.0,109180.0,0.08252898]
[1751503602673,0.45836,109190.0,109180.0,0.11893184]
[1751503602920,0.59156334,109190.0,109180.0,0.11893184]
[1751503603121,0.77964334,109190.0,109180.0,0.11893184]
[1751503603337,0.98928406,109190.0,109180.0,0.11893184]
[1751503603551,0.80611711,109190.0,109180.0,0.08252898]
[1751503603766,0.80611711,109190.0,109180.0,0.08452898]
[1751503603767,0.9994424,109190.0,109180.0,0.08452898]
[1751503603994,1.0004424,109190.0,109180.0,0.08452898]
[1751503604211,0.80711711,109190.0,109180.0,0.08252898]
[1751503604429,0.80911711,109190.0,109180.0,0.08852898]
[1751503604632,0.8182752,109190.0,109180.0,0.08852898]
[1751503604849,0.78880101,109190.0,109180.0,0.08252898]
[1751503605048,0.77972334,109190.0,109180.0,0.08252898]
[1751503605268,0.78072334,109190.0,109180.0,0.08852898]
[1751503605498,0.78072334,109190.0,109180.0,0.13409102]
[1751503605718,0.78072334,109190.0,109180.0,0.12493184]
[1751503605925,0.22232,109190.0,109180.0,0.12493184]
[1751503606144,0.78068334,109190.0,109180.0,0.12493184]
[1751503606355,0.77968334,109190.0,109180.0,0.13409102]
[1751503606588,0.78068334,109190.0,109180.0,0.12693184]
[1751503607512,0.78068334,109190.0,109180.0,0.12047873]
[1751503610347,0.78068334,109190.0,109180.0,0.10339698]
[1751503610555,0.78068334,109190.0,109180.0,0.12046599]
[1751503611150,0.78068334,109190.0,109180.0,0.08406313]
[1751503611346,0.78068334,109190.0,109180.0,0.26724686]
[1751503612209,0.59156334,109190.0,109180.0,0.26724686]
[1751503612420,0.78056334,109190.0,109180.0,0.28556514]
[1751503612754,0.78056334,109190.0,109180.0,0.27640604]
[1751503612956,0.78056334,109190.0,109180.0,0.26724686]
[1751503613247,0.78056334,109190.0,109180.0,0.27640604]
[1751503614308,0.78056334,109190.0,109180.0,0.30364972]
[1751503614508,0.78056334,109190.0,109180.0,0.3128089]
[1751503614796,0.78056334,109190.0,109180.0,0.33112701]
[1751503614954,0.78056334,109190.0,109180.0,0.321968]
[1751503615348,0.78056334,109190.0,109180.0,0.33112701]
[1751503615548,0.78056334,109190.0,109180.0,0.34028594]
[1751503616082,0.78056334,109190.0,109180.0,0.33112701]
[1751503616535,0.78056334,109190.0,109180.0,0.321968]
[1751503617133,0.78056334,109190.0,109180.0,0.33112701]
[1751503617545,0.78056334,109190.0,109180.0,0.34028594]
[1751503618001,0.59156334,109190.0,109180.0,0.34944479]
[1751503618243,0.78036334,109190.0,109180.0,0.29457372]
[1751503618462,0.78036334,109190.0,109180.0,0.28541471]
[1751503618588,0.78036334,109190.0,109180.0,0.30373265]
[1751503618801,0.78036334,109190.0,109180.0,0.29457372]
[1751503619325,0.00512628,109180.0,109170.0,0.3198573]
[1751503619531,0.19384628,109180.0,109170.0,0.42177698]
[1751503620915,0.51712962,109180.0,109170.0,0.35378828]
[1751503621096,0.51712962,109180.0,109170.0,0.31759892]
[1751503621353,0.51712962,109180.0,109170.0,0.30843949]
[1751503621559,0.51712962,109180.0,109170.0,0.32675861]
[1751503621673,0.51712962,109180.0,109170.0,0.31759876]
[1751503621896,0.51712962,109180.0,109170.0,0.32675819]
[1751503622209,0.19484628,109180.0,109170.0,0.32675819]
[1751503622414,0.19484628,109180.0,109170.0,0.35955819]
[1751503623040,0.19484628,109180.0,109170.0,0.34123924]
[1751503623214,0.19484628,109180.0,109170.0,0.35039876]
[1751503623588,0.19484628,109180.0,109170.0,0.35955819]
[1751503624326,0.19584628,109180.0,109170.0,0.35955819]
[1751503624727,0.19584628,109180.0,109170.0,0.42039876]
[1751503625135,0.19584628,109180.0,109170.0,0.42955819]
[1751503626183,0.19584628,109180.0,109170.0,0.48406667]
[1751503629529,0.19584628,109180.0,109170.0,0.50237331]
[1751503631223,0.19584628,109180.0,109170.0,0.48587331]
[1751503631430,0.19584628,109180.0,109170.0,0.46957331]
[1751503631646,0.19584628,109180.0,109170.0,0.48537331]
[1751503631900,0.19584628,109180.0,109170.0,0.46957331]
[1751503632749,0.19584628,109180.0,109170.0,0.45125436]
[1751503632954,0.19584628,109180.0,109170.0,0.46041379]
[1751503633413,0.19584628,109180.0,109170.0,0.45125419]
[1751503633868,0.53432962,109180.0,109170.0,0.2405752]
[1751503634096,0.53432962,109180.0,109170.0,0.24973522]
[1751503634314,0.53432962,109180.0,109170.0,0.2409752]
[1751503635199,0.53452962,109180.0,109170.0,0.2409752]
[1751503635423,0.53452962,109180.0,109170.0,0.25013522]
[1751503635649,0.53452962,109180.0,109170.0,0.2409752]
[1751503636183,0.21224628,109180.0,109170.0,0.2409752]
[1751503637077,0.22744628,109180.0,109170.0,0.2409752]
[1751503637962,0.21224628,109180.0,109170.0,0.25013514]
[1751503638201,0.19604628,109180.0,109170.0,0.25013514]
[1751503639041,0.19604628,109180.0,109170.0,0.25013522]
[1751503639251,0.19604628,109180.0,109170.0,0.25929516]
[1751503639880,0.19604628,109180.0,109170.0,0.26845501]
[1751503640118,0.19604628,109180.0,109170.0,0.45165552]
[1751503640306,0.19604628,109180.0,109170.0,0.46997473]
[1751503640569,0.19604628,109180.0,109170.0,0.46997414]
[1751503641229,0.19604628,109180.0,109170.0,0.45165519]
[1751503641441,0.19604628,109180.0,109170.0,0.46081479]
[1751503642741,0.19604628,109180.0,109170.0,0.46997431]
[1751503643040,0.19604628,109180.0,109170.0,0.46081479]
[1751503643259,0.19604628,109180.0,109170.0,0.45165519]
[1751503643486,0.21194628,109180.0,109170.0,0.45165519]
[1751503643891,0.21194628,109180.0,109170.0,0.45165527]
[1751503644313,0.21194628,109180.0,109170.0,0.46081496]
[1751503644582,0.21194628,109180.0,109170.0,0.46997456]
[1751503645199,0.21194628,109180.0,109170.0,0.46997414]
[1751503645404,0.21194628,109180.0,109170.0,0.46997372]
[1751503646564,0.21194628,109180.0,109170.0,0.46081429]
[1751503646766,0.19604628,109180.0,109170.0,0.46081429]
[1751503647484,0.19604628,109180.0,109170.0,0.46997372]
[1751503647683,0.19604628,109180.0,109170.0,0.46081429]
[1751503648896,0.19604628,109180.0,109170.0,0.45165477]
[1751503649607,0.19604628,109180.0,109170.0,0.4608142]
[1751503650821,0.19604628,109180.0,109170.0,0.45165477]
[1751503651057,0.19604628,109180.0,109170.0,0.46081429]
[1751503651664,0.19604628,109180.0,109170.0,0.46997372]
[1751503652036,0.00732628,109180.0,109170.0,0.46997372]
[1751503652258,0.00732628,109180.0,109170.0,0.89704643]
[1751503652467,0.24256628,109180.0,109170.0,0.89704643]
[1751503653107,0.05400628,109180.0,109170.0,0.57476309]
[1751503653308,0.24256628,109180.0,109170.0,0.89704643]
[1751503653975,0.24256628,109180.0,109170.0,0.57476309]
[1751503654180,0.24256628,109180.0,109170.0,0.82405706]
[1751503655676,0.24256628,109180.0,109170.0,0.84240706]
[1751503655965,0.24256628,109180.0,109170.0,0.82405706]
[1751503656146,0.05400628,109180.0,109170.0,0.82405706]
[1751503656300,0.24256628,109180.0,109170.0,0.82405706]
[1751503657127,0.0308,109210.0,109200.0,0.21062169]
[1751503657338,0.0308,109220.0,109200.0,0.28506776]
[1751503657545,0.5973185,109220.0,109210.0,0.09131405]
[1751503658104,0.59731841,109220.0,109210.0,0.09131405]
[1751503658295,0.27503507,109220.0,109210.0,0.03652756]
[1751503658541,0.60647357,109220.0,109210.0,0.03652756]
[1751503658742,0.60647357,109220.0,109210.0,0.06447786]
[1751503658947,0.37139357,109220.0,109210.0,0.0646072]
[1751503659159,0.61562898,109220.0,109210.0,0.09198509]
[1751503659368,0.62778456,109220.0,109210.0,0.05545753]
[1751503659575,0.61862898,109220.0,109210.0,0.05545753]
[1751503659815,0.63394021,109220.0,109210.0,0.05545753]
[1751503660016,0.61662998,109220.0,109210.0,0.02850723]
[1751503660156,0.61562998,109220.0,109210.0,0.02750723]
[1751503660359,0.29434664,109220.0,109210.0,0.03050723]
[1751503660559,0.61962998,109220.0,109210.0,0.03150723]
[1751503660801,0.61862998,109220.0,109210.0,0.02850723]
[1751503661209,0.61962998,109220.0,109210.0,0.03050723]
[1751503662498,0.61962998,109220.0,109210.0,0.00312934]
[1751503662703,0.80274662,109220.0,109210.0,0.00312934]
[1751503663929,0.29734664,109220.0,109210.0,0.00312934]
[1751503664140,0.61962998,109220.0,109210.0,0.00312934]
[1751503664574,0.61047424,109220.0,109210.0,0.00312934]
[1751503664789,0.26988,109220.0,109210.0,0.1034966]
[1751503665014,0.004,109220.0,109210.0,0.71998651]
[1751503665250,0.004,109220.0,109210.0,0.83503508]
[1751503665503,0.004,109220.0,109210.0,0.79850752]
[1751503666193,0.003,109220.0,109210.0,0.79650752]
[1751503666410,0.23544,109230.0,109210.0,0.79650752]
[1751503666411,0.23544,109230.0,109220.0,0.00915583]
[1751503666627,0.23544,109230.0,109220.0,0.06373279]
[1751503666857,0.23544,109230.0,109220.0,0.07288862]
[1751503667371,0.23544,109230.0,109220.0,0.06373279]
[1751503667780,0.23644,109230.0,109220.0,0.06573279]
[1751503668847,0.24044,109230.0,109220.0,0.06673279]
[1751503670324,0.24044,109230.0,109220.0,0.03031405]
[1751503670955,0.25584,109230.0,109220.0,0.03031405]
[1751503676999,0.27114,109230.0,109220.0,0.03031405]
[1751503680986,0.24044,109230.0,109220.0,0.03031405]
[1751503681195,0.05176,109230.0,109220.0,0.36092083]
[1751503681442,0.05176,109230.0,109220.0,0.68320417]
[1751503681659,0.05176,109230.0,109220.0,0.70490085]
[1751503682304,0.05176,109230.0,109220.0,0.75968734]
[1751503682988,0.0052,109230.0,109220.0,0.7232686]
[1751503684904,0.0042,109230.0,109220.0,0.7212686]
[1751503685103,0.0052,109230.0,109220.0,0.7252686]
[1751503686369,0.0052,109230.0,109220.0,0.67048211]
[1751503687359,0.0052,109230.0,109220.0,0.74048211]
[1751503688078,0.0012,109230.0,109220.0,0.73948211]
[1751503688481,0.0022,109230.0,109220.0,0.74248211]
[1751503689254,0.0022,109230.0,109220.0,0.67248211]
[1751503690436,0.0022,109230.0,109220.0,0.74529723]
[1751503693835,0.0022,109230.0,109220.0,0.93373723]
[1751503696560,0.0022,109230.0,109220.0,0.90303723]
[1751503698518,0.0022,109230.0,109220.0,0.58075389]
[1751503698701,0.0022,109230.0,109220.0,0.90303723]
[1751503702268,0.0022,109230.0,109220.0,0.97303723]
[1751503703894,0.0022,109230.0,109220.0,0.95278606]
[1751503705109,0.0022,109230.0,109220.0,1.25481823]
[1751503705556,0.0022,109230.0,109220.0,1.21671823]
[1751503705708,0.0022,109230.0,109220.0,1.23506823]
[1751503705934,0.0022,109230.0,109220.0,1.21671823]
[1751503708323,0.0022,109230.0,109220.0,1.18481823]
[1751503708737,0.0022,109230.0,109220.0,0.58075389]
[1751503708937,0.0022,109230.0,109220.0,0.58067389]
[1751503709187,0.0181,109230.0,109220.0,0.88270606]
[1751503709646,0.0181,109230.0,109220.0,0.95270606]
[1751503711107,0.0181,109230.0,109220.0,0.87989094]
[1751503712519,0.0181,109230.0,109220.0,0.55954804]
[1751503712722,0.0331,109230.0,109220.0,0.87989094]
[1751503714937,0.0331,109230.0,109220.0,0.57785877]
[1751503715141,0.0331,109230.0,109220.0,0.87989094]
[1751503715984,0.33513217,109230.0,109220.0,0.24287673]
[1751503716225,0.0331,109230.0,109220.0,0.24287673]
[1751503716435,0.0331,109230.0,109220.0,0.44039256]
[1751503716837,0.0331,109230.0,109220.0,0.43123673]
[1751503717054,0.3368497,109230.0,109220.0,0.24287673]
[1751503717266,0.33513217,109230.0,109220.0,0.35812008]
[1751503717676,0.33513217,109230.0,109220.0,0.09976008]
[1751503717884,0.33413217,109230.0,109220.0,0.09576008]
[1751503718280,0.33413217,109230.0,109220.0,0.15057507]
[1751503718727,0.33513217,109230.0,109220.0,0.15157507]
[1751503719578,0.3442864,109230.0,109220.0,0.15157507]
[1751503719881,0.36453451,109230.0,109220.0,0.15157507]
[1751503720230,0.35538028,109230.0,109220.0,0.15157507]
[1751503723314,0.3645346,109230.0,109220.0,0.15157507]
[1751503723530,0.35538028,109230.0,109220.0,0.05881499]
[1751503723915,0.3645346,109230.0,109220.0,0.05881499]
[1751503724122,0.35538028,109230.0,109220.0,0.05881499]
[1751503724990,0.36453451,109230.0,109220.0,0.05881499]
[1751503726478,0.35538028,109230.0,109220.0,0.05881499]
[1751503727035,0.3645346,109230.0,109220.0,0.05881499]
[1751503727255,0.35538028,109230.0,109220.0,0.05881499]
[1751503728561,0.0331,109230.0,109220.0,0.05881499]
[1751503728760,0.03481753,109230.0,109220.0,0.05881499]
[1751503732514,0.35709781,109230.0,109220.0,0.05881499]
[1751503732736,0.35538028,109230.0,109220.0,0.05881499]
[1751503735030,0.0331,109230.0,109220.0,0.05881499]
[1751503735173,0.35709781,109230.0,109220.0,0.05881499]
[1751503735369,0.35538028,109230.0,109220.0,0.05881499]
[1751503736996,0.36453451,109230.0,109220.0,0.05881499]
[1751503737395,0.37368891,109230.0,109220.0,0.05881499]
[1751503738132,0.36453451,109230.0,109220.0,0.05881499]
[1751503738541,0.04225423,109230.0,109220.0,0.05881499]
[1751503738783,0.36625204,109230.0,109220.0,0.05881499]
[1751503738999,0.36453451,109230.0,109220.0,0.05881499]
[1751503739817,0.35355096,109230.0,109220.0,0.05881499]
[1751503740017,0.34439664,109230.0,109220.0,0.05881499]
[1751503741333,0.33524241,109230.0,109220.0,0.05881499]
[1751503741736,0.34439673,109230.0,109220.0,0.05881499]
[1751503741952,0.34439664,109230.0,109220.0,0.05881499]
[1751503743675,0.35355104,109230.0,109220.0,0.05881499]
[1751503744788,0.34439664,109230.0,109220.0,0.05881499]
[1751503746201,0.34439664,109230.0,109220.0,0.004]
[1751503747225,0.35355113,109230.0,109220.0,0.004]
[1751503747437,0.35355104,109230.0,109220.0,0.004]
[1751503749364,0.34439664,109230.0,109220.0,0.004]
[1751503749560,0.35355104,109230.0,109220.0,0.004]
[1751503750020,0.0331,109230.0,109220.0,0.004]
[1751503750224,0.03481753,109230.0,109220.0,0.004]
[1751503750430,0.33695994,109230.0,109220.0,0.004]
[1751503750636,0.33524241,109230.0,109220.0,0.004]
[1751503750868,0.34439681,109230.0,109220.0,0.004]
[1751503751715,0.0331,109230.0,109220.0,0.004]
[1751503751925,0.33695994,109230.0,109220.0,0.004]
[1751503752150,0.33524241,109230.0,109220.0,0.004]
[1751503752526,0.34439664,109230.0,109220.0,0.004]
[1751503752949,0.35355104,109230.0,109220.0,0.004]
[1751503753351,0.34439664,109230.0,109220.0,0.004]
[1751503754914,0.04225423,109230.0,109220.0,0.004]
[1751503755115,0.04397176,109230.0,109220.0,0.004]
[1751503755310,0.35526857,109230.0,109220.0,0.004]
[1751503755538,0.35355104,109230.0,109220.0,0.004]
[1751503756573,0.04225423,109230.0,109220.0,0.004]
[1751503756849,0.84966619,109230.0,109220.0,0.004]
[1751503757091,1.07351426,109230.0,109220.0,0.04062156]
[1751503757330,1.07351426,109230.0,109220.0,0.03146951]
[1751503757549,1.07351426,109230.0,109220.0,0.03144637]
[1751503757768,1.07251426,109230.0,109220.0,0.02844637]
[1751503757994,1.07351426,109230.0,109220.0,0.03044637]
[1751503758431,1.07251426,109230.0,109220.0,0.001]
[1751503758699,1.07251426,109230.0,109220.0,0.002]
[1751503760633,1.07151426,109230.0,109220.0,0.001]
[1751503760842,1.07251426,109230.0,109220.0,0.002]
[1751503760991,1.07151426,109230.0,109220.0,0.001]
[1751503761401,1.07451426,109230.0,109220.0,0.002]
[1751503769647,0.38272241,109230.0,109220.0,0.02943071]
[1751503769881,0.04968,109230.0,109220.0,0.06103071]
[1751503770084,0.04968,109230.0,109220.0,0.09765227]
[1751503770311,0.35182241,109230.0,109220.0,0.10680801]
[1751503770513,0.35182241,109230.0,109220.0,0.0793773]
[1751503770725,0.0032,109230.0,109220.0,0.67799662]
[1751503770924,0.0032,109230.0,109220.0,0.71231991]
[1751503771174,0.0032,109230.0,109220.0,1.01446232]
[1751503771349,0.0032,109230.0,109220.0,0.95953925]